Cogmind - Beta 14 @@@ ROGUE MODE // 2024.08.19 @ 20:05:07 Player: JohnnyDongs Result: Destroyed self with Mini Grenade Launcher Performance ------------- Evolutions (0) 0 Regions Visited (2) 400 Robots Destroyed (26) 130 Value Destroyed (637) 637 Prototype IDs (2) 40 Alien Tech Used (0) 0 Bonus (0) 0 TOTAL SCORE: 1207 Bonus ------- None Cogmind --------- Core Integrity 0/250 Matter 271/300 Energy 160/160 System Corruption 0% Temperature Cool (0) Movement Treading (320) Ox2 Location -10/Mines Parts ------- > --- POWER (1) -------- Light Nuclear Core > --- PROPULSION (2) --- Light Treads Light Treads > --- UTILITY (2) ------ Huge Storage Unit Light Armor Plating > --- WEAPON (2) ------- Light EM Pulse Cannon Mini Grenade Launcher > --- INVENTORY (25) --- Ion Engine Light Treads Heat Sink Heat Sink High-capacity Matter Pod (179) High-capacity Matter Pod (0) High-capacity Matter Pod (0) Weight Redist. System Terrain Scanner Power Shielding Small Laser Small Laser Light EM Pulse Cannon Light EM Pulse Cannon Light EM Pulse Cannon Light Cannon Mini Grenade Launcher Mini Grenade Launcher Mini Grenade Launcher Mining Laser Peak State ------------ > --- POWER ------------ Light Nuclear Core > --- PROPULSION ------- Light Treads Light Treads > --- UTILITY ---------- Huge Storage Unit Light Armor Plating > --- WEAPON ----------- Light EM Pulse Cannon Mini Grenade Launcher > --- INVENTORY -------- Ion Engine Light Treads Heat Sink Heat Sink Small Matter Pod Large Matter Pod Weight Redist. System Terrain Scanner Power Shielding Small Laser Small Laser Light EM Pulse Cannon Light EM Pulse Cannon Light EM Pulse Cannon Light Cannon Mini Grenade Launcher Mini Grenade Launcher Mini Grenade Launcher Mining Laser [Rating: 13] Favorites ----------- Power Light Nuclear Core Engine Ion Engine Power Core Light Nuclear Core Propulsion Light Treads Treads Light Treads Utility Huge Storage Unit Device Improved Terrain Scanner Storage Huge Storage Unit Processor Transport Network Coupler Protection Light Armor Plating Weapon Assault Rifle Energy Gun EM Pulse Gun Energy Cannon Light EM Pulse Cannon Ballistic Gun Assault Rifle Ballistic Cannon Light Cannon Launcher Mini Grenade Launcher Special Weapon Mining Laser Build | -11 -10 -10 ------- Run | Yrd Mat Min Slots Evolved . | . . . Power . | . . . Propulsion . | . . . Utility . | . . . Weapon . | . . . Parts Attached 23 | 4 19 . Power 2 | 1 1 . Engine 1 | 1 . . Core 1 | . 1 . Reactor . | . . . Propulsion 4 | 2 2 . Treads 4 | 2 2 . Leg . | . . . Wheel . | . . . Hover . | . . . Flight . | . . . Utility 5 | . 5 . Device 1 | . 1 . Storage 2 | . 2 . Processor 1 | . 1 . Hackware . | . . . Protection 1 | . 1 . Artifact . | . . . Weapon 12 | 1 11 . Energy Gun 5 | . 5 . Energy Cannon 1 | . 1 . Ballistic Gun 2 | 1 1 . Ballistic Cannon 1 | . 1 . Launcher 2 | . 2 . Special Weapon 1 | . 1 . Impact Weapon . | . . . Slashing Weapon . | . . . Piercing Weapon . | . . . Special Melee Weapon . | . . . Unidentified Prototypes . | . . . Parts Lost 6 | . 6 . Power . | . . . Propulsion 1 | . 1 . Utility 2 | . 2 . Weapon 3 | . 3 . Highest Loss Streak 3 | . 3 . To Critical Strikes . | . . . Average Slot Usage (%) 94 | . 94 . Engine 1 | . 1 . Core 12 | . 12 . Treads 27 | . 27 . Device 1 | . 1 . Storage 13 | . 13 . Protection 7 | . 7 . Energy Gun 6 | . 6 . Energy Cannon 3 | . 3 . Ballistic Gun 6 | . 6 . Ballistic Cannon 5 | . 5 . Launcher 4 | . 4 . Special Weapon 1 | . 1 . Peak Build Rating 13 | 4 13 . Average Rating 9 | 3 10 . On Entrance 5 | . 4 13 Naked Turns . | . . . Heaviest Build 93 | 7 93 . Greatest Support 40 | 40 40 . Greatest Overweight (x) 2 | . 2 . Average Overweight (x) 1 | . 1 . Largest Inventory Capacity 25 | 5 25 . Average Capacity 23 | 5 23 . Most Carried 20 | . 20 . Average Carried 10 | . 10 . Final Capacity 25 | 5 25 25 Final Carried 20 | . 20 20 Class Distribution -------------------- 100% | Mutant Dominant Class ---------------- Mutant | -10/Materials Mutant | -10/Mines Resources | -11 -10 -10 ----------- Run | Yrd Mat Min Matter Collected 1095 | 177 918 . Remotely . | . . . Salvage Created 729 | . 729 . Parts 57 | . 57 . Haulers Intercepted 2 | . 2 . Recyclers Shooed . | . . . Parts Field Recycled . | . . . Retrieved Matter . | . . . Parts Self-Destructed . | . . . Prevented . | . . . Kills | -11 -10 -10 ------- Run | Yrd Mat Min Combat Hostiles Destroyed 18 | . 18 . Guns 10 | . 10 . Cannons 5 | . 5 . AOE 3 | . 3 . Classes Destroyed 6 | . 6 . Worker 2 | . 2 . Tunneler 1 | . 1 . Hauler 2 | . 2 . Watcher 3 | . 3 . Swarmer 3 | . 3 . Grunt 15 | . 15 . Best Kill Streak 5 | . 5 . Combat Bots Only 3 | . 3 . Max Kills in Single Turn 2 | . 2 . Gunslinging . | . . . Exploded 2 | . 2 . Melee . | . . . Uniques/NPCs Destroyed . | . . . Combat | -11 -10 -10 -------- Run | Yrd Mat Min Hostile Shots Fired 91 | . 91 . Missed 25 | . 25 . Damage Taken 993 | . 957 36 Core 253 | . 217 36 Absorbed by Shields . | . . . Regen/Repaired (Parts) 111 | . 111 . Core Remaining (%) 100 | 100 . . Volleys Fired 78 | . 77 1 Largest 2 | . 2 1 Hottest 100 | . 100 30 Shots Fired 105 | . 104 1 Gun 73 | . 73 . Cannon 24 | . 24 . Launcher 6 | . 5 1 Special 2 | . 2 . Kinetic 72 | . 72 . Thermal 2 | . 2 . Explosive 6 | . 5 1 Electromagnetic 25 | . 25 . Robot Hit Streak 9 | . 9 . Robot Miss Streak 3 | . 3 1 Penetration Max . | . . . Secondary Targets . | . . . Shots Hit Robots 63 | . 63 . Core Hits 39 | . 38 1 Critical Kills . | . . . Critical Parts Destroyed 1 | . 1 . Critical Strikes 2 | . 2 . Destroy 1 | . 1 . Blast 1 | . 1 . Melee Attacks . | . . . Impact . | . . . Slashing . | . . . Piercing . | . . . Sneak Attacks . | . . . Combat Hostiles . | . . . Follow-up Attacks . | . . . Damage Inflicted 1473 | . 1391 82 Guns 728 | . 728 . Cannons 246 | . 246 . Explosions 499 | . 417 82 Melee . | . . . Ramming . | . . . Kinetic 665 | . 665 . Thermal 68 | . 68 . Explosive 431 | . 349 82 Electromagnetic 309 | . 309 . Impact . | . . . Slashing . | . . . Piercing . | . . . Highest Corruption . | . . . Average Corruption . | . . . Corruption Purged . | . . . Corruption Blocked . | . . . Overload Shots . | . . . Overflow Damage 2 | . 2 . Projectiles . | . . . Explosions 2 | . 2 . Melee . | . . . Knockbacks . | . . . Impact . | . . . Kinetic . | . . . Secondary . | . . . Self-Inflicted Damage 197 | . 161 36 Shots 6 | . 5 1 Rammed 1 | . 1 . Targets Rammed 1 | . 1 . Kicked . | . . . Crushed . | . . . Highest Temperature 237 | . 237 . Average Temperature 55 | . 55 . Received Heat Transfer 450 | . 450 . Effects 1 | . 1 . Energy Bleed 1 | . 1 . Siege Activations . | . . . Robots Corrupted . | . . . Combat Hostiles . | . . . Parts Fried 1 | . 1 . Impact Corruptions . | . . . Robots Melted . | . . . Combat Hostiles . | . . . Parts Melted . | . . . Heat Transferred 100 | . 100 . Parts Sabotaged . | . . . Parts Stolen . | . . . Parts Stripped . | . . . Power Chain Reactions 2 | . 2 . Alert | -11 -10 -10 ------- Run | Yrd Mat Min Peak Influence 167 | . 167 . Initial 40 | . . 40 Average 73 | . 75 . Maximum Alert Level . | . . . Low Security (%) 100 | 100 100 . Level 1 . | . . . Level 2 . | . . . Level 3 . | . . . Level 4 . | . . . Level 5 . | . . . High Security . | . . . Max Security . | . . . Squads Dispatched 4 | . 4 . Investigation 4 | . 4 . Extermination . | . . . Reinforcement . | . . . Assault . | . . . Garrison . | . . . Intercept . | . . . Searches Triggered . | . . . Construction Impeded . | . . . Haulers Reinforced . | . . . Active Scanning Responses . | . . . Cargo Convoy Interrupts . | . . . Stealth | -11 -10 -10 --------- Run | Yrd Mat Min Distress Signals . | . . . Communications Jammed . | . . . Distress Signals . | . . . Times Spotted 24 | . 24 . Peak Tracking Total 3 | . 3 . Tactical Retreats 1 | . 1 . Traps | -11 -10 -10 ------- Run | Yrd Mat Min Traps Triggered 4 | . 4 . Indirectly . | . . . Trap Hack Attempts . | . . . Triggered . | . . . Disarmed . | . . . Reprogrammed . | . . . Reused . | . . . Traps Extracted . | . . . Installed . | . . . Triggered . | . . . Machines | -11 -10 -10 ---------- Run | Yrd Mat Min Machines Disabled 1 | . 1 . Max in Single Turn 1 | . 1 . Machines Repaired . | . . . Machines Dismantled . | . . . Machines Sabotaged . | . . . Overloaded Fab Kills . | . . . Hacking | -11 -10 -10 --------- Run | Yrd Mat Min Machines Accessed 9 | . 9 . Terminals 6 | . 6 . Fabricators . | . . . Repair Stations 1 | . 1 . Recycling Units 2 | . 2 . Scanalyzers . | . . . Garrison Access . | . . . Total Hacks 26 | . 26 . Successful 18 | . 18 . Failed 8 | . 8 . Catastrophic 3 | . 3 . Database Lockouts . | . . . Manual 8 | . 8 . Terminals 20 | . 20 . Fabricators . | . . . Repair Stations 2 | . 2 . Recycling Units 4 | . 4 . Scanalyzers . | . . . Garrison Access . | . . . Terminal Hacks 13 | . 13 . Part Schematic 3 | . 3 . Prototype ID Bank 1 | . 1 . Branch Access Points 2 | . 2 . Emergency Access Points 1 | . 1 . Alert Level 1 | . 1 . Surveillance Status 1 | . 1 . Investigation Status 1 | . 1 . Reinforcement Status 1 | . 1 . Hauler Manifests 2 | . 2 . Fabricator Hacks . | . . . Repair Station Hacks 2 | . 2 . Scan Component 1 | . 1 . Repair 1 | . 1 . Recycling Unit Hacks 3 | . 3 . Report Inventory 2 | . 2 . Retrieve Components 1 | . 1 . Scanalyzer . | . . . Garrison Access Hacks . | . . . Unauthorized Hacks . | . . . Terminals . | . . . Fabricators . | . . . Repair Stations . | . . . Recycling Units . | . . . Scanalyzers . | . . . Garrison Access . | . . . Data Cores Recovered . | . . . Used . | . . . Hacking Detections 8 | . 8 . Full Trace Events 1 | . 1 . Feedback Events . | . . . Feedback Blocked . | . . . Robot Schematics Acquired . | . . . Robots Built . | . . . Authchips . | . . . Time . | . . . Total Robot Build Rating . | . . . Part Schematics Acquired 3 | . 3 . Parts Built . | . . . Authchips . | . . . Time . | . . . Total Part Build Rating . | . . . Parts Repaired 1 | . 1 . Time 13 | . 13 . Parts Recycled . | . . . Recycled Matter . | . . . Retrieved Matter . | . . . Retrieved Components 3 | . 3 . Parts Scanalyzed . | . . . Part Schematics Acquired . | . . . Parts Damaged . | . . . Bothacking | -11 -10 -10 ------------ Run | Yrd Mat Min Used RIF Installer . | . . . Robots Hacked . | . . . Non-combat . | . . . Combat . | . . . Robot Hacks Applied . | . . . Relay Couplers Released . | . . . Fabnet Peak Effective % . | . . . Robots Rewired . | . . . Allies Hacked . | . . . Hacks Repelled . | . . . Allies | -11 -10 -10 -------- Run | Yrd Mat Min Total Allies . | . . . Largest Group . | . . . Highest-Rated Group . | . . . Highest-Rated Ally . | . . . Total Orders . | . . . Ally Attacks . | . . . Total Damage . | . . . Kills . | . . . Allies Corrupted . | . . . Allies Melted . | . . . Intel | -11 -10 -10 ------- Run | Yrd Mat Min Robot Analysis Total . | . . . Derelict Logs Recovered . | . . . Drone Launches . | . . . Drone Recoveries . | . . . Exploration | -11 -10 -10 ------------- Run | Yrd Mat Min Turns Passed 2202 | 62 2140 . Spaces Moved 664 | 39 625 . Core 5 | 5 . . Treads 659 | 34 625 . Legs . | . . . Wheels . | . . . Hover . | . . . Flight . | . . . Fastest Speed 50 | 50 160 . Average Speed 291 | 145 300 . Slowest Speed 320 | 160 320 . Overloaded Moves . | . . . Propulsion Burnouts . | . . . Robots Hopped . | . . . Cave-ins Triggered . | . . . Exploration Rate (%) 33 | 3 94 4 Regions Visited 2 Branch Regions 1 Pre-discovered Areas . | . . . Known Exits Taken 1 | . 1 . Unknown Exits Taken 1 | 1 . . Scrap Searched . | . . . Spaces Dug 2 | . 2 . Terrain Destroyed 55 | . 51 4 Melee . | . . . Projectile 2 | . 2 . AOE 53 | . 49 4 Terrain Rammed . | . . . Walls Destroyed . | . . . Machines Disabled . | . . . Actions | -11 -10 -10 --------- Run | Yrd Mat Min Total 817 | 42 774 1 Wait 15 | . 15 . Move 662 | 38 624 . Hop . | . . . Pick Up 29 | . 29 . Fast Attach 14 | 4 10 . Attach 5 | . 5 . Detach . | . . . Swap 4 | . 4 . Drop 9 | . 9 . Fire 78 | . 77 1 Melee . | . . . Ram . | . . . Kick . | . . . Crush 1 | . 1 . Escape Stasis . | . . . Rewire . | . . . Trap . | . . . Miscellaneous . | . . . Route ------- -11/Scrapyard -10/Materials (discovered 4 exits: [*Mat x3] / *Min) -10/Mines (discovered 1 exit: [*Mat]) History --------- Turn | Location | Event 2 | -11/Scrapyard | Met Revision 17 20 | -11/Scrapyard | Discovered new exit (range 16) 63 | -11/Scrapyard | Entered Materials 134 | -10/Materials | Identified exit to Mines 314 | -10/Materials | Build established: Mutant 763 | -10/Materials | Core integrity fell below 50% 846 | -10/Materials | Discovered new exit (range 9) 1026 | -10/Materials | Lost 3 parts (1n1u1w) 1439 | -10/Materials | Discovered new exit (range 5) 1893 | -10/Materials | Repaired Lgt. Treads 1907 | -10/Materials | Core integrity fell below 20% 1934 | -10/Materials | Discovered new exit (range 13) 2203 | -10/Materials | Entered Mines 2203 | -10/Mines | Discovered new exit (range 7) 2203 | -10/Mines | Destroyed self with Mini Grenade Launcher Last Messages --------------- 01936_ U-05 Engineer builds a Wall. 01936_ U-05 Engineer lays Concrete. 01938_ U-05 Engineer builds a Wall. 01941_ U-05 Engineer lays Concrete. 01943_ U-05 Engineer builds a Wall. 01946_ U-05 Engineer lays Concrete. 01989_ Connecting with Terminal... >>Access(Branch) Found 1 branch access point: (36,37) Mines Map updated. 02025_ K-01 Serf cleans the Matter Filter. 02069_ K-01 Serf cleans the Terminal. 02160_ K-01 Serf cleans the Pressure Siphon. 02186_ K-01 Serf cleans the Terminal. LOCATION=MINES GOAL=ESCAPE Something is scanning the area. 02203_ EXIT=FOUND Map ----- +----------------------------------------------------+ | | | | | | | | | | | | | ??????????????????????????????????????????? | | ??????????????????????????????????????????? | | ??????????????????????????????????????????? | | ??????????????????????????????????????????? | | ??????????????????????????????????????????? | | ??????????????????????????????????????????? | | ??????????????????????##???####???????????? | | ?????????????????????? ??? #???????????? | | ??????????????????????" """ s #???????????? | | ??????????????????????? """ s #???????????? | | ??????????????????????? """ s #???????????? | | ??????????????????????? #???????????? | | ??????????????????????? #???????????? | | ???????????????????????? < #???????????? | | ???????????????????????? ????????????? | | ???????????????????????? ?????????????? | | ???????????????????????? ##????????????? | | ???????????????????????## g ????????????? | | ???????????????????????# ####????????? | | ???????????????????????# @g #???????? | | ???????????????????????## #### #???????? | | ????????????????????????## ##????????????? | | ??????????????????????????# #?????????????? | | ??????????????????????????? #?????????????? | | ????????????????????????????#?????????????? | | ??????????????????????????????????????????? | | ??????????????????????????????????????????? | | ??????????????????????????????????????????? | | ??????????????????????????????????????????? | | ??????????????????????????????????????????? | | ??????????????????????????????????????????? | | ??????????????????????????????????????????? | | ??????????????????????????????????????????? | | ??????????????????????????????????????????? | | ??????????????????????????????????????????? | | ??????????????????????????????????????????? | | ??????????????????????????????????????????? | | ??????????????????????????????????????????? | | ??????????????????????????????????????????? | | ??????????????????????????????????????????? | | ??????????????????????????????????????????? | | ??????????????????????????????????????????? | | ??????????????????????????????????????????? | | ??????????????????????????????????????????? | +----------------------------------------------------+ Best States ------------- Heat Dissipation 25 Energy Generation 14 Energy Capacity 250 Matter Stores 300 Matter Capacity 300 Sight Range 16 Terrain Scan Range 16 Terrain Scan Density 10 Armor Coverage 150 Evasion (%) 40 Recoil Reduction 2 Item Schematics ----------------- Cargo Storage Unit | -10/Materials | Hacked Hcp. Matter Pod | -10/Materials | Hacked Huge Storage Unit | -10/Materials | Hacked Robot Schematics ------------------ None Fabricated ------------ Nothing Alien Tech Used ----------------- None Achievements -------------- root@ Challenges ------------ None Game ------ Seed FortressMobileCycler Manual? 0 Play Time 00:17:51 Cumulative 19.6 hours Start 2024.08.19 @ 19:47:14 End 2024.08.19 @ 20:05:07 Sessions 1 Manual Loads 0 Difficulty Rogue Special Mode None Game No. 15 Rogue 15 Adventurer 0 Explorer 0 Win Type - Total 0 Types 0/0/0/0/0/0/0/0/0 Lore% 11 Gallery% 20 Achievement% 22 Wizard Run 0 Options --------- Layout 1 ASCII 0 Keyboard 0 Movement Numpad Keybinds 0 Fullscreen 1 Font 24/Smallcaps Map View 50x35 Zoom Use 0% Tactical HUD 1 Map Filters NONE Filters NONE Steam 1 RUN: 6bd8aa66-59b6-4841-bfd9-457fbe5352f2